{"text_format":"1","workbook":"xlsx","n_sheets":2,"sheets":["Antrag","Nachschlagstabelle"],"not_rendered":{"charts":0,"images":1,"macros":0,"external_links":0,"defined_names":6,"comments":0,"pivot_tables":0},"unopened":[],"bounds":{"document_bytes":16777216,"sheet_cells":100000,"rows_first":2000,"rows_last":500,"rows_between":2000,"halvings":0,"cell_chars":16384,"cell_head_chars":4096},"cells_cut":0,"cells_raw":0,"read":"whole","date_system":"1900"}

{"sheet":"Antrag","index":0,"n_rows":121,"n_cols":26,"rows_kept":121,"cut":false,"hidden":false,"merged":[[100,2,100,20],[78,14,78,18],[89,16,90,21],[120,3,120,8],[120,12,120,20],[1,1,2,20],[4,1,4,20],[113,2,113,20],[114,2,114,20],[115,2,115,20],[116,2,116,20],[118,1,118,20],[107,2,107,20],[108,2,108,20],[109,2,109,20],[110,2,110,20],[111,2,111,20],[112,2,112,20],[101,2,101,20],[102,2,102,20],[103,2,103,20],[104,2,104,20],[105,2,105,20],[106,2,106,20],[76,12,76,13],[63,14,63,16],[75,14,75,16],[76,14,76,16],[97,2,97,20],[98,2,98,20],[99,2,99,20],[89,11,90,13],[79,14,79,20],[81,1,87,20],[93,1,93,20],[96,2,96,20],[73,1,73,2],[65,1,65,2],[67,1,67,2],[72,3,72,10],[70,1,70,2],[72,1,72,2],[74,1,74,2],[66,1,66,2],[67,14,67,16],[68,14,68,16],[73,14,73,16],[72,14,72,16],[74,14,74,16],[73,3,73,10],[74,3,74,10],[73,22,73,24],[56,22,56,24],[58,22,58,24],[61,1,61,2],[63,3,63,10],[64,3,64,10],[65,3,65,10],[70,3,70,10],[67,3,67,10],[56,14,56,16],[57,14,57,16],[58,14,58,16],[59,14,59,16],[64,14,64,16],[65,14,65,16],[66,14,66,16],[56,1,56,2],[64,1,64,2],[57,1,57,2],[58,1,58,2],[63,1,63,2],[62,1,62,2],[71,11,72,11],[71,1,71,2],[66,3,66,10],[57,3,57,10],[58,3,58,10],[12,11,12,14],[56,3,56,10],[52,1,52,2],[55,1,55,2],[41,1,41,2],[44,1,49,20],[41,15,41,17],[62,11,63,11],[61,3,61,10],[55,3,55,10],[28,15,34,18],[41,13,41,14],[37,1,37,5],[42,2,42,13],[43,1,43,21],[53,1,53,2],[55,14,55,16],[54,3,54,10],[5,8,6,17],[8,1,9,9],[21,10,21,13],[25,10,25,13],[13,8,13,9],[15,8,15,9],[8,15,15,20],[17,15,23,18],[21,19,23,20],[17,19,20,20],[13,2,13,7],[11,2,11,4],[21,1,21,5],[21,6,21,8],[54,1,54,2],[33,1,33,8],[37,15,38,20],[42,15,42,17],[42,18,42,21],[41,3,41,12],[52,13,53,14],[52,15,53,20],[26,1,27,8],[30,1,31,8],[54,14,54,16],[25,15,26,20],[26,10,27,13],[30,10,31,13],[32,1,32,4],[32,10,32,13],[53,11,54,11],[41,18,41,20],[28,19,31,20],[32,19,34,20],[52,3,52,10]]}
[]
[null,"Förderungsantrag"]
[]
[]
[null,"zur Förderung eines Projektes im Rahmen der Tiroler Waldordnung, aktuell geltender Fassung, V. Teil, §58 bis §65."]
[]
[]
[]
[null,"Förderungswerber(in) (bitte ankreuzen x)",null,null,null,null,null,null,null,null,null,null,null,null,null,"Amt der Tiroler Landesregierung\nGruppe Forst\nBürgerstraße 36\n6020 Innsbruck"]
[]
[]
[null,null,"natürliche Person",null,null,null,null,null,null,"Ehegemeinschaft",null,null,"Geb. Datum Gattin:","……………………………."]
[]
[null,null,"juristische Person / Personengemeinschaft",null,null,null,null,null,null,null,null,null,"Geb. Datum Gatte:","……………………………"]
[]
[]
[null,null,null,null,null,null,null,null,null,"……………………………………………………….."]
[null,null,null,null,null,null,null,null,null,null,null,null,null,null,null,"Eingangsstempel Einreichstelle",null,null,null,"Entgegengenommen"]
[]
[null,"Gesellschaftsname und -form",null,null,null,null,null,null,null,null,"ZVR / FB - Nr."]
[]
[null,null,null,null,null,null,null,null,null,null,null,null,null,null,null,null,null,null,null,"Erfasst"]
[null,"Zuname(n), Vorname(n), Titel,(Vertretungsbefugter bei Jur.Pers.)",null,null,null,null,null,null,null,null,"Geburtsdatum"]
[]
[]
[null,"Straße, Hausnummer",null,null,null,null,null,null,null,null,"Postleitzahl, Postort      ",null,null,null,null,"Eingangsnummer (durch Einreichsstelle zu vergeben):"]
[]
[null,null,null,null,null,null,null,null,null,null,null,null,null,null,null,null,null,null,null,4]
[null,"IBAN",null,null,null,null,null,null,null,null,"Telefonnummer",null,null,null,null,"Eingangsstempel Bewilligungsst.",null,null,null,"Entgegengenommen"]
[]
[]
[]
[null,"BIC",null,null,null,null,null,null,null,null,"E-Mailadresse",null,null,null,null,null,null,null,null,"Erfasst"]
[]
[]
[]
[]
[null,"Vorsteuerabzugsberechtigt",null,null,null,null,null,null,null,null,null,null,null,null,null,"Antragsnummer (durch Bewilligungsstelle zu vergeben):"]
[]
[]
[]
[null,"Projektname",null,null,null,null,null,null,null,null,null,null,null,"Zeitplan  "]
[null,null,null,null,null,null,null,null,null,null,null,null,null,null,null,"Beginn",null,null,"Ende"]
[null,"Projektbeschreibung"]
[]
[]
[]
[]
[]
[]
[]
[]
[null,null,null,{"$f":"Nachschlagstabelle!A9","v":"Kategorie: Wald Umwelt"},null,null,null,null,null,null,null,null,null,"Bezeichnung:"]
[null,null,null,null,null,null,null,null,null,null,null,"Standard kosten"]
[null,"FAI-Code",null,"Maßnahme",null,null,null,null,null,null,null,null,"Einheit","Menge","Nettokosten"]
[null,{"$f":"INDEX(Nachschlag_WUM,$Z56,2)","v":"--"},null,{"$f":"IF(INDEX(Nachschlag_WUM,$Z56,1)=\"--- bitte auswählen ---\",\"\",INDEX(Nachschlag_WUM,$Z56,1))","v":"bitte wählen:"},null,null,null,null,null,null,null,{"$f":"INDEX(Nachschlag_WUM,$Z56,4)","v":"--"},{"$f":"INDEX(Nachschlag_WUM,$Z56,5)","v":"--"},null,{"$f":"IFERROR(IF(L56*N56>0,L56*N56,\"\"),\"\")","v":""},null,null,null,null,null,null,null,null,null,null,1]
[null,{"$f":"INDEX(Nachschlag_WUM,$Z57,2)","v":"--"},null,{"$f":"IF(INDEX(Nachschlag_WUM,$Z57,1)=\"--- bitte auswählen ---\",\"\",INDEX(Nachschlag_WUM,$Z57,1))","v":"bitte wählen:"},null,null,null,null,null,null,null,{"$f":"INDEX(Nachschlag_WUM,$Z57,4)","v":"--"},{"$f":"INDEX(Nachschlag_WUM,$Z57,5)","v":"--"},null,{"$f":"IFERROR(IF(L57*N57>0,L57*N57,\"\"),\"\")","v":""},null,null,null,null,null,null,null,null,null,null,1]
[null,{"$f":"INDEX(Nachschlag_WUM,$Z58,2)","v":"--"},null,{"$f":"IF(INDEX(Nachschlag_WUM,$Z58,1)=\"--- bitte auswählen ---\",\"\",INDEX(Nachschlag_WUM,$Z58,1))","v":"bitte wählen:"},null,null,null,null,null,null,null,{"$f":"INDEX(Nachschlag_WUM,$Z58,4)","v":"--"},{"$f":"INDEX(Nachschlag_WUM,$Z58,5)","v":"--"},null,"",null,null,null,null,null,null,null,null,null,null,1]
[null,{"$f":"INDEX(Nachschlag_WUM,$Z59,2)","v":"--"},null,{"$f":"IF(INDEX(Nachschlag_WUM,$Z59,1)=\"--- bitte auswählen ---\",\"\",INDEX(Nachschlag_WUM,$Z59,1))","v":"bitte wählen:"},null,null,null,null,null,null,null,{"$f":"INDEX(Nachschlag_WUM,$Z59,4)","v":"--"},{"$f":"INDEX(Nachschlag_WUM,$Z59,5)","v":"--"},null,"",null,null,null,null,null,null,null,null,null,null,1]
[null,null,null,null,null,null,null,null,null,null,null,null,null,"Summe:",{"$f":"IF(SUM(O56:Q59)>0,SUM(O56:Q59),\"\")","v":""}]
[]
[null,null,null,{"$f":"Nachschlagstabelle!A28","v":"Kategorie: Forst"}]
[null,null,null,null,null,null,null,null,null,null,null,"Standard kosten"]
[null,"FAI-Code",null,"Maßnahme",null,null,null,null,null,null,null,null,"Einheit","Menge","Nettokosten"]
[null,{"$f":"INDEX(Nachschlag_Forst,$Z65,2)","v":""},null,{"$f":"IF(INDEX(Nachschlag_Forst,$Z65,1)=\"--- bitte auswählen ---\",\"\",INDEX(Nachschlag_Forst,$Z65,1))","v":""},null,null,null,null,null,null,null,{"$f":"INDEX(Nachschlag_Forst,$Z65,4)","v":""},{"$f":"INDEX(Nachschlag_Forst,$Z65,5)","v":""},null,{"$f":"IFERROR(IF(L65*N65>0,L65*N65,\"\"),\"\")","v":""},null,null,null,null,null,null,null,null,null,null,1]
[null,{"$f":"INDEX(Nachschlag_Forst,$Z66,2)","v":""},null,{"$f":"IF(INDEX(Nachschlag_Forst,$Z66,1)=\"--- bitte auswählen ---\",\"\",INDEX(Nachschlag_Forst,$Z66,1))","v":""},null,null,null,null,null,null,null,{"$f":"INDEX(Nachschlag_Forst,$Z66,4)","v":""},{"$f":"INDEX(Nachschlag_Forst,$Z66,5)","v":""},null,{"$f":"IFERROR(IF(L66*N66>0,L66*N66,\"\"),\"\")","v":""},null,null,null,null,null,null,null,null,null,null,1]
[null,{"$f":"INDEX(Nachschlag_Forst,$Z67,2)","v":""},null,{"$f":"IF(INDEX(Nachschlag_Forst,$Z67,1)=\"--- bitte auswählen ---\",\"\",INDEX(Nachschlag_Forst,$Z67,1))","v":""},null,null,null,null,null,null,null,{"$f":"INDEX(Nachschlag_Forst,$Z67,4)","v":""},{"$f":"INDEX(Nachschlag_Forst,$Z67,5)","v":""},null,"",null,null,null,null,null,null,null,null,null,null,1]
[null,{"$f":"INDEX(Nachschlag_Forst,$Z68,2)","v":""},null,{"$f":"IF(INDEX(Nachschlag_Forst,$Z68,1)=\"--- bitte auswählen ---\",\"\",INDEX(Nachschlag_Forst,$Z68,1))","v":""},null,null,null,null,null,null,null,{"$f":"INDEX(Nachschlag_Forst,$Z68,4)","v":""},{"$f":"INDEX(Nachschlag_Forst,$Z68,5)","v":""},null,{"$f":"IFERROR(IF(L68*N68>0,L68*N68,\"\"),\"\")","v":""},null,null,null,null,null,null,null,null,null,null,1]
[null,null,null,null,null,null,null,null,null,null,null,null,null,"Summe:",{"$f":"IF(SUM(O65:Q68)>0,SUM(O65:Q68),\"\")","v":""}]
[]
[null,null,null,{"$f":"Nachschlagstabelle!A64","v":"Kategorie: Öffentlichkeitsarbeit"}]
[null,null,null,null,null,null,null,null,null,null,null,"Standard kosten"]
[null,"FAI-Code",null,"Maßnahme",null,null,null,null,null,null,null,null,"Einheit","Menge","Nettokosten"]
[null,{"$f":"INDEX(Nachschlag_Öffentlichkeitsarbeit,$Z74,2)","v":""},null,{"$f":"IF(INDEX(Nachschlag_Öffentlichkeitsarbeit,$Z74,1)=\"--- bitte auswählen ---\",\"\",INDEX(Nachschlag_Öffentlichkeitsarbeit,$Z74,1))","v":""},null,null,null,null,null,null,null,{"$f":"INDEX(Nachschlag_Öffentlichkeitsarbeit,$Z74,4)","v":""},{"$f":"INDEX(Nachschlag_Öffentlichkeitsarbeit,$Z74,5)","v":""},null,{"$f":"IFERROR(IF(L74*N74>0,L74*N74,\"\"),\"\")","v":""},null,null,null,null,null,null,null,null,null,null,1]
[null,{"$f":"INDEX(Nachschlag_Öffentlichkeitsarbeit,$Z75,2)","v":""},null,{"$f":"IF(INDEX(Nachschlag_Öffentlichkeitsarbeit,$Z75,1)=\"--- bitte auswählen ---\",\"\",INDEX(Nachschlag_Öffentlichkeitsarbeit,$Z75,1))","v":""},null,null,null,null,null,null,null,{"$f":"INDEX(Nachschlag_Öffentlichkeitsarbeit,$Z75,4)","v":""},{"$f":"INDEX(Nachschlag_Öffentlichkeitsarbeit,$Z75,5)","v":""},null,{"$f":"IFERROR(IF(L75*N75>0,L75*N75,\"\"),\"\")","v":""},null,null,null,null,null,null,null,null,null,null,1]
[null,null,null,null,null,null,null,null,null,null,null,null,null,"Summe:",{"$f":"IF(SUM(O74:Q75)>0,SUM(O74:Q75),\"\")","v":""}]
[null,null,null,null,null,null,null,null,null,null,null,null,"Gesamtsumme:",null,{"$f":"IF(SUM(O60,O69,O76)>0,SUM(O60,O69,O76),\"\")","v":""}]
[]
[null,"Wurden sonstige Öffentliche Mittel beantragt",null,null,null,null,null,null,null,null,null,null,"wenn Ja:","Wieviel:"]
[null,null,null,null,null,null,null,null,null,null,null,null,null,"Wo:"]
[]
[null,"Der Förderwerber ist verpflichtet, im Förderantrag vollständige Angaben über beabsichtigte, laufende oder erledigte Förderanträge zum gleichen Vorhaben bei anderen Rechtsträgerinnen oder Dienststellen zu machen. Nach dem Tiroler Fördertransparenzgesetz, LGBI. Nr. 149/2012, ist die Landesregierung verpflichtet, bei Landesförderungen über einem Betrag von € 2.000,00 pro Förderart den vollständigen Namen, die Postleitzahl, die Art und Höhe der Förderung, die Gesamtinvestitionssumme, sofern diese ein Kriterium für die Höhe der Förderung ist, sowie die gewährten Kredite jährlich dem Landtag bekannt zu geben und auf der Landeshomepage zu veröffentlichen."]
[]
[]
[]
[]
[]
[]
[]
[]
[]
[null,null,null,null,null,null,null,null,null,null,null,"Ort, Datum",null,null,null,null,"Unterschrift"]
[]
[null,"Verpflichtungserklärung"]
[]
[null," „Zuwendungen zur Erholungsraumgestaltung“ – Richtlinie Landschaftsdienst  laut Beschluss der Tiroler Landesregierung vom 05.04.2016 "]
[null,"1.1"," Ich nehme die jeweilige aktuelle Richtlinie „Zuwendungen zur Erholungsraumgestaltung“ laut Beschluss der Tiroler Landesregierung vom 05.04.2016, die die Grundlage für die Maßnahme(n), an der (denen) ich teilnehmen will, bilden - verfügbar unter https://www.tirol.gv.at/umwelt/wald/erlebnis/foerderung/ zur Kenntnis und verpflichte mich zu Einhaltung dieser."]
[null,"1.2","Diese Richtlinie enthält die allgemein geltenden Bedingungen für die Teilnahme und den Abschluss eines Vertrages zwischen mir und dem Land."]
[null,"1.3","Die Richtlinie bildet einen integrierten Bestandteil des Vertrages, der zwischen mir auf Grund meines Antrages und dem Land auf Grund der Annahme des Antrages durch das Land zu Stande kommt, soweit die Richtlinien Rechte, Bedingungen und Verpflichtungen für die Vertragsparteien enthalten."]
[null,"1.4"," Alle Anhänge bilden einen integrierten Bestandteil der Landesrichtlinie und sind damit Vertragsbestandteil."]
[null,"1.5","Mit der Antragstellung und Abgabe der unterzeichneten Verpflichtungserklärung, die einen integrierten Bestandteil des Antrages bildet, kann ich mich nicht mehr darauf berufen, dass\nDie Punkte -1 und -2 gelten gleichermaßen auch für alle anderen Vorkehrungen oder Unterlassungen im Zusammenhang mit der Antragstellung und Einhaltung des Vertrages.\n"]
[null,null," ich die mich treffenden Verpflichtungen aus dem Vertrag mit dem Land nicht gekannt habe oder sie mir nicht verständlich gewesen seien oder auch dass"]
[null,null,"2 die von mir unterzeichneten Angaben mir nicht zurechenbar seien."]
[null,"1.6","Ich habe vor der Antragstellung auch eigeninitiativ alle geeigneten Maßnahmen zu ergreifen und Informationsangebote zu nützen, die sicherstellen, dass ich noch vor Eingehen der Verpflichtung Kenntnis der mich treffenden Rechte und Pflichten, die mir aus dem Fördervertrag mit dem Land erwachsen, erlange."]
[null,"1.7","Ich bin grundsätzlich verpflichtet, über schriftliche Aufforderung der Bewilligenden Stelle – Abteilung Forstorganisation,  Gruppe Forst und unter Vorbehalt der Geltendmachung weitergehender gesetzlicher Ansprüche - eine gewährte Förderung ganz oder teilweise binnen 14 Tagen zurückzuzahlen, wobei der Anspruch auf zugesicherte, aber noch nicht ausbezahlte Förderungen erlischt, soweit die vorgesehenen Bedingungen und Voraussetzungen sowie – sofern bei der betreffenden Maßnahme vorgesehen auch anderweitige Verpflichtungen nicht oder nicht vollständig erfüllt sind, insbesondere wenn"]
[null,null,"die Beauftragten oder Organe der Abwicklungsstellen durch mich über Umstände, die für die Gewährung, das Ausmaß der Förderung oder die Aufrechterhaltung der Verpflichtung maßgebend sind, unrichtig oder unvollständig unterrichtet wurden oder mir zurechenbare Dritte dies getan haben."]
[null,null,"in diesen Landesrichtlinien vorgesehene Förderungsvoraussetzungen nicht oder nicht vollständig erfüllt werden können oder erfüllt wurden bzw. die entsprechend den Förderungsvoraussetzungen zu erbringende Leistung einschließlich insbesondere von Dokumentationspflichten, Meldepflichten sowie Duldungs- und Mitwirkungspflichten von mir nicht oder nicht rechtzeitig erbracht werden kann oder erbracht worden ist."]
[null,"1.8","Ich verpflichte mich dabei ausdrücklich, insbesondere"]
[null,null,"mit der Durchführung des Vorhabens gemäß dem vereinbarten Zeitplan, ansonsten unverzüglich nach Gewährung der Förderung zu beginnen, das Vorhaben zügig durchzuführen und dieses innerhalb der vereinbarten, ansonsten innerhalb einer angemessenen Frist ab"]
[null,null,"der Bewilligenden Stelle alle Ereignisse, welche die Durchführung des geförderten Vorhabens verzögern oder unmöglich machen, oder eine Abänderung gegenüber dem Förderungsantrag oder vereinbarten Auflagen und Bedingungen erfordern würde, unverzüglich und aus eigener Initiative anzuzeigen;"]
[null,null,"es wird sicherstellt, dass der Fördergegenstand ordnungsgemäß genutzt und instand gehalten wird, sowie frei zugänglich und unentgeltlich benutzt werden kann. Die Frist beträgt sieben Jahre ab Fälligkeit der Letztzahlung (=Behaltefrist)."]
[null,null,"den Beauftragten oder Organen der Abwicklungsstellen zu allen land- und forstwirtschaftlichen Flächen sowie Betriebs- und Lagerräumen des Betriebes Zutritt zu gewähren, in die Unterlagen, die die Prüforgane für ihre Prüfung für erforderlich erachten, Einsicht zu gewähren, sowie alle erforderlichen Auskünfte und Unterstützung zu erteilen und die Aufzeichnungen und Unterlagen mindestens sieben Jahre gerechnet ab Fälligkeit der Letztzahlung (=Behaltefrist) aufzubewahren;"]
[null,null," die erhaltene Förderung auf Verlangen der Bewilligenden Stelle, ganz oder teilweise rückzuerstatten, wenn die Maßnahme von mir vor Ablauf des Verpflichtungszeitraumes beendet wird;"]
[null,null,"im Falle von Rückforderungen sind die ausbezahlten Fördermittel, nach schriftlicher Aufforderung, an die auszahlende Stelle (Gruppe Forst) zurückzuzahlen.\n"]
[null,"1.9","Ich kann bei Verstößen gegen die Bestimmungen dieser Landesrichtlinien von dieser und anderen Förderungsmaßnahmen des Landes ausgeschlossen werden. Weitergehende rechtliche Ansprüche bleiben unberührt."]
[null,"2.1","Ich nehme zur Kenntnis, dass auf Grund der §§ 7 bis 11 Datenschutzgesetz 2000 (DSG 2000), BGBl. I Nr. 1999/165, alle im Zusammenhang mit der Anbahnung und Abwicklung der Förderung mich betreffenden personenbezogenen Daten vom Land und von der von ihm beauftragten Förderungsabwicklungsstelle zu Abwicklungs- und Kontrollzwecken verwendet werden und es im Rahmen dieser Verwendung dazu kommen kann, dass die Daten insbesondere an Organe oder Beauftragte des Landeshauptmannes, des Bundesministeriums für Finanzen, des Rechnungshofes übermittelt werden können. Soweit EU-Rechtsvorschriften zwingend weitergehende Datenoffenlegungen vorsehen, bleiben diese unberührt."]
[null,"3.1","Für Streitigkeiten aus dem durch die Förderung begründeten Rechtsverhältnis gilt als ausschließlicher Gerichtsstand Innsbruck."]
[]
[null,"Ich bestätige mit meiner / meines Bevollmächtigten Unterschrift, dass ich alle vor- und nachstehenden Angaben mit bestem Wissen gemacht und die obenstehende Verpflichtungserklärung als Bestandteil des Vertrages als verbindlich zur Kenntnis genommen habe."]
[]
[null,null,null,"Ort;Datum",null,null,null,null,null,null,null,null,"Unterschrift des/der Förderungswerber/in oder Vertretungsbevollmächtigten *)\n*Die Unterschrift gilt auch für die einen integrierten Bestandteil des Antrages bildenden weiteren Unterlagen."]

{"sheet":"Nachschlagstabelle","index":1,"n_rows":67,"n_cols":6,"rows_kept":67,"cut":false,"hidden":true,"merged":[[0,0,0,4],[1,0,1,4],[2,0,2,4]]}
["Die Nachschlagstabellen sind in \"benannte Bereiche\" eingeteilt."]
["Werden unten Zeilen hinzugefügt oder gelöscht, müssen die Bereiche im Menüpunkt \"Formeln->Namensmanager\" angepasst werden. In den entsprechenden Formeln des Tabellenblatts \"Antrag\" sind keine Änderungen notwendig."]
["ACHTUNG: Zellen OHNE sichtbaren Eintrag müssen für die Kombinationsfelder einen Apostroph --> ' <-- beinhalten."]
[]
[]
[]
["Maßnahme","Code","Erläuterung","Pauschsatz","Einheit"]
[]
["Kategorie: Wald Umwelt"]
["bitte wählen:","--","","--","--","Leerzeile für Kombinationsfeld zum Löschen einer Maßnahme"]
["Lärchweide- Lärchwiesenwälder/ Durchforstung mit Seil","P606",null,3250,"ha"]
["Lärchweide- Lärchwiesenwälder/ Durchforstung ohne Seil","P606",null,1650,"ha"]
["Totholz / Bruthöhlenbaum","P692",null,35,"fm"]
["Juwelen Laubholz WEP 1xx","P103",null,2.1,"Stück"]
["Juwelen Strauch WEP 1xx","P103",null,3.3,"Stück"]
["Juwelen Strauch mit Pflock WEP 1xx","P103",null,3.84,"Stück"]
["Juwelen seltene Baumart WEP 1xx","P103",null,4.08,"Stück"]
["Juwelen Einzelschutz seltene Baumart WEP 1xx","P103",null,3.24,"Stück"]
["Juwelen Laubholz WEP 2xx, 3xx","P303",null,2.8,"Stück"]
["Juwelen Strauch WEP 2xx, 3xx","P303",null,4.4000000000000004,"Stück"]
["Juwelen Strauch mit Pflock WEP 2xx, 3xx","P303",null,5.12,"Stück"]
["Juwelen seltene Baumart WEP 2xx, 3xx","P303",null,5.44,"Stück"]
["Juwelen Einzelschutz seltene Baumart WEP 2xx, 3xx","P303",null,4.32,"Stück"]
["Pferde-Holzbringung Durchforstung/Endnutzung","P679 - P680",null,17,"efm"]
["Frattenlegen","P605",null,5.2,"efm gen. Menge"]
["Neophytenbekämpfung","P600",null,1650,"ha"]
[]
["Kategorie: Forst"]
["--- bitte auswählen ---","","","","","Leerzeile für Kombinationsfeld zum Löschen einer Maßnahme"]
["Operate","P642",null,"--","ha"]
["Entfernung Einzelstämme - Straßenschutz","P004",null,37.5,"efm"]
["Innovation/Pilotprojekte","P670"]
["Hygienemaßnahmen nach Kosten ","319 - 419"]
[]
[]
[]
[]
[]
[]
[]
[]
[]
[]
[]
[]
[]
[]
[]
[]
[]
[]
[]
[]
[]
[]
[]
[]
[]
[]
[]
[]
[]
[]
["Kategorie: Öffentlichkeitsarbeit"]
["--- bitte auswählen ---","","","","","Leerzeile für Kombinationsfeld zum Löschen einer Maßnahme"]
["Mediale Verbreitung","098"]
["Aufklärungs- und Öffentlichkeitsarbeit","099",null,"",""]